bitfinex-derivatives/quotes_SOLF0:USTF0_20241008
["timestamp","ask_amount","ask_price","bid_price","bid_amount"]
[1728402125861,34.45,142.65,142.59,1.4063]
[1728402126664,34.45,142.65,142.63,3.5067]
[1728402127269,26.95,142.65,142.63,3.5067]
[1728402127568,26.95,142.65,142.64,3.5065]
[1728402128170,26.95,142.65,142.63,3.5066]
[1728402128964,26.95,142.65,142.59,1.4063]
[1728402129267,26.95,142.63,142.59,1.4063]
[1728402129468,26.95,142.63,142.6,3.5074]
[1728402129667,26.95,142.63,142.59,1.4063]
[1728402129981,26.95,142.63,142.59,3.5076]
[1728402130174,26.95,142.6,142.55,1.51292]
[1728402130567,26.95,142.6,142.56,3.5084]
[1728402130768,26.95,142.6,142.55,1.51292]
[1728402131071,26.95,142.58,142.55,0.12502]
[1728402131270,26.95,142.56,142.49,0.12502]
[1728402132479,26.95,142.56,142.54,3.5087]
[1728402132864,26.95,142.56,142.49,0.12502]
[1728402133068,26.95,142.58,142.55,3.5087]
[1728402134179,26.95,142.58,142.49,0.12502]
[1728402134369,26.95,142.58,142.5,1.26034201]
[1728402135071,26.95,142.58,142.52,3.5094]
[1728402135267,26.95,142.58,142.49,0.12502]
[1728402135473,26.95,142.6,142.5,1.26049839]
[1728402135668,26.95,142.6,142.57,3.5081]
[1728402136085,26.95,142.58,142.49,0.12502]
[1728402136276,26.95,142.55,142.49,0.12502]
[1728402136777,0.12502,142.61,142.49,0.12502]
[1728402136976,1.3144,142.7,142.55,27.07502]
[1728402137176,1.3144,142.7,142.56,11.7045]
[1728402137383,27.07502,142.67,142.56,11.7045]
[1728402137581,27.07502,142.67,142.56,15.13260843]
[1728402137793,27.07502,142.67,142.59,3.5077]
[1728402138082,27.07502,142.67,142.6,7.64]
[1728402138282,0.12502,142.67,142.6,7.64]
[1728402138471,0.12502,142.67,142.65,3.506]
[1728402138968,0.12502,142.67,142.6,7.64]
[1728402139168,0.12502,142.67,142.65,3.5063]
[1728402140688,0.12502,142.67,142.56,34.44260843]
[1728402140890,0.12502,142.67,142.57,7.64]
[1728402141174,0.12502,142.67,142.56,7.49260843]
[1728402141175,26.95,142.66,142.56,7.49260843]
[1728402141385,26.95,142.66,142.57,7.64]
[1728402141788,26.95,142.64,142.58,7.64]
[1728402142280,26.95,142.64,142.61,3.5072]
[1728402142578,26.95,142.66,142.58,7.64]
[1728402143077,26.95,142.66,142.61,3.5072]
[1728402143684,30.4561,142.66,142.6,3.5073]
[1728402143872,30.4561,142.66,142.58,7.64]
[1728402144069,30.44831502,142.66,142.56,9.0122]
[1728402144274,26.95,142.62,142.56,9.0122]
[1728402144475,26.95,142.62,142.57,1.2599083]
[1728402144679,26.95,142.66,142.56,9.0122]
[1728402144680,26.95,142.66,142.59,3.5077]
[1728402144983,26.95,142.66,142.56,9.0122]
[1728402146289,26.95,142.66,142.62,3.5068]
[1728402147170,26.95,142.66,142.56,9.0122]
[1728402147373,0.12502,142.67,142.56,9.0122]
[1728402147575,26.95,142.64,142.56,1.3722]
[1728402147773,26.95,142.64,142.57,7.64]
[1728402148395,26.95,142.64,142.59,3.5077]
[1728402148577,26.95,142.64,142.57,7.64]
[1728402148886,30.4561,142.66,142.57,7.64]
[1728402149280,0.12502,142.67,142.57,7.64]
[1728402149789,0.12502,142.67,142.64,3.5063]
[1728402150196,0.12502,142.67,142.65,3.5062]
[1728402150679,0.12502,142.67,142.6,3.5075]
[1728402150884,0.12502,142.67,142.57,7.64]
[1728402151085,0.12502,142.67,142.58,1.25967999]
[1728402151387,0.12502,142.67,142.57,7.64]
[1728402151779,3.506,142.66,142.6,3.5072]
[1728402151981,26.95,142.63,142.57,7.64]
[1728402152480,26.95,142.63,142.61,3.5071]
[1728402153080,26.95,142.66,142.62,3.507]
[1728402153278,7.76502,142.67,142.57,7.64]
[1728402153777,0.12502,142.67,142.57,7.64]
[1728402153978,0.12502,142.67,142.58,1.25978749]
[1728402154284,0.12502,142.67,142.66,3.506]
[1728402154490,0.12502,142.67,142.63,3.47622483]
[1728402154881,26.95,142.66,142.63,3.47622483]
[1728402155077,26.95,142.66,142.62,3.507]
[1728402155283,26.95,142.66,142.59,10.4058]
[1728402155478,26.95,142.66,142.62,3.5069]
[1728402155678,26.95,142.66,142.59,10.4058]
[1728402156181,26.95,142.66,142.62,3.5068]
[1728402157383,26.95,142.66,142.63,3.5066]
[1728402157775,26.95,142.64,142.56,1.3722]
[1728402157978,26.95,142.61,142.55,0.12502]
[1728402158192,26.95,142.57,142.55,0.12502]
[1728402158593,26.95,142.57,142.5,1.312]
[1728402158789,26.95,142.57,142.49,0.12502]
[1728402158993,26.95,142.52,142.49,0.12502]
[1728402159485,26.95,142.52,142.5,3.5098]
[1728402160482,26.95,142.52,142.49,0.12502]
[1728402161084,26.95,142.52,142.51,3.5097]
[1728402161799,26.95,142.55,142.49,0.12502]
[1728402162286,26.95,142.59,142.5,3.58243289]
[1728402162492,26.95,142.59,142.51,10.3164]
[1728402162698,27.07502,142.61,142.51,11.7213]
[1728402162997,0.12502,142.61,142.52,1.26027406]
[1728402163202,0.12502,142.61,142.6,3.5075]
[1728402165181,26.95,142.66,142.63,3.5067]
[1728402165386,26.95,142.66,142.6,3.50434689]
[1728402165591,26.95,142.66,142.55,7.76502]
[1728402165785,26.95,142.66,142.56,1.25994557]
[1728402166794,26.95,142.66,142.59,3.5077]
[1728402166996,26.95,142.66,142.6,3.46462637]
[1728402167394,26.95,142.66,142.63,3.5066]
[1728402167898,26.95,142.66,142.62,3.5069]
[1728402168085,26.95,142.63,142.55,0.12502]
[1728402168583,26.95,142.63,142.58,3.5079]
[1728402168784,26.95,142.63,142.55,0.12502]
[1728402169493,26.95,142.63,142.56,7.48]
[1728402170495,26.95,142.63,142.6,3.5073]
[1728402172893,26.95,142.63,142.56,7.48]
[1728402173091,26.95,142.63,142.61,3.5072]
[1728402173283,1.3783,142.65,142.61,3.5072]
[1728402173685,26.95,142.64,142.6,3.5073]
[1728402174194,26.95,142.64,142.56,7.48]
[1728402174591,26.95,142.61,142.56,7.48]
[1728402174999,30.4573,142.61,142.56,10.9883]
[1728402175189,30.4573,142.61,142.56,3.5083]
[1728402175398,26.95,142.61,142.55,0.12502]
[1728402175792,26.95,142.61,142.57,3.5081]
[1728402176791,26.95,142.61,142.58,3.508]
[1728402177203,26.95,142.61,142.55,0.12502]
[1728402177506,26.95,142.61,142.57,3.5081]
[1728402177703,26.95,142.61,142.55,0.12502]
[1728402177999,29.66,142.58,142.55,0.12502]
[1728402178295,3.64787968,142.67,142.55,0.12502]
[1728402178496,29.66,142.65,142.55,0.12502]
[1728402179796,29.66,142.65,142.61,3.5071]
[1728402179998,29.66,142.65,142.57,7.48]
[1728402180196,29.66,142.65,142.6,3.5073]
[1728402180698,1.99082,142.67,142.55,0.12502]
[1728402180699,29.66,142.62,142.55,0.12502]
[1728402181393,29.66,142.62,142.61,3.5072]
[1728402181593,29.66,142.65,142.61,3.5072]
[1728402181799,29.66,142.65,142.55,0.12502]
[1728402182000,29.66,142.65,142.6,3.5074]
[1728402182197,29.66,142.62,142.55,0.12502]
[1728402182395,29.66,142.62,142.57,3.5082]
[1728402182595,29.66,142.62,142.55,0.12502]
[1728402183205,29.66,142.62,142.58,3.5078]
[1728402183412,29.66,142.6,142.55,0.12502]
[1728402184514,29.66,142.6,142.57,3.5081]
[1728402185098,29.66,142.6,142.55,0.12502]
[1728402185800,29.66,142.6,142.57,3.5081]
[1728402186204,29.66,142.6,142.55,0.12502]
[1728402186611,29.66,142.6,142.55,3.63352]
[1728402187303,33.1676,142.6,142.55,3.63352]
[1728402187901,33.1676,142.6,142.55,0.12502]
[1728402187902,29.66,142.6,142.55,0.12502]
[1728402188099,29.66,142.57,142.55,0.12502]
[1728402188501,29.66,142.57,142.52,3.5093]
[1728402188502,33.1684,142.57,142.52,3.5093]
[1728402188705,29.66,142.55,142.49,0.12502]
[1728402190112,7.48,142.58,142.49,0.12502]
[1728402190305,29.66,142.54,142.49,0.12502]
[1728402190502,33.169,142.54,142.5,3.5099]
[1728402190710,33.169,142.54,142.49,0.12502]
[1728402191004,33.169,142.54,142.5,3.5099]
[1728402191209,29.66,142.54,142.5,3.5099]
[1728402191905,29.66,142.51,142.49,0.12502]
[1728402192113,29.66,142.51,142.46,3.5109]
[1728402192114,33.1699,142.51,142.46,3.5109]
[1728402192307,29.66,142.49,142.46,3.5109]
[1728402192513,29.66,142.49,142.45,3.5111]
[1728402192714,29.66,142.49,142.43,1.57352]
[1728402193114,29.66,142.49,142.44,3.5112]
[1728402193416,29.66,142.49,142.43,1.57352]
[1728402193604,29.66,142.49,142.46,3.5108]
[1728402194017,29.66,142.51,142.43,1.57352]
[1728402194217,29.66,142.51,142.47,3.5105]
[1728402194809,1.4064,142.53,142.46,3.44337272]
[1728402195004,0.12502,142.55,142.46,29.66]
[1728402195211,0.12502,142.55,142.47,4.08354311]
[1728402195511,0.12502,142.55,142.54,3.509]
[1728402197117,7.48,142.6,142.51,1.4009]
[1728402197321,29.78502,142.61,142.51,1.4009]
[1728402197827,29.66,142.58,142.51,1.4009]
[1728402198121,29.66,142.56,142.51,1.4009]
[1728402198323,29.66,142.56,142.52,3.5094]
[1728402199222,33.1685,142.56,142.52,3.5094]
[1728402199528,29.66,142.53,142.49,0.12502]
[1728402200716,29.66,142.53,142.49,3.63522]
[1728402201120,29.66,142.53,142.49,0.12502]
[1728402201316,29.66,142.53,142.5,3.5098]
[1728402201623,29.66,142.53,142.49,0.12502]
[1728402201826,29.66,142.53,142.5,3.5099]
[1728402202223,29.66,142.53,142.49,0.12502]
[1728402202423,33.1692,142.53,142.49,3.63512]
[1728402203230,29.66,142.51,142.49,0.12502]
[1728402203419,29.66,142.5,142.44,7.32]
[1728402203835,29.66,142.53,142.44,7.32]
[1728402204923,29.66,142.53,142.46,3.5108]
[1728402205119,29.66,142.53,142.46,3.45809577]
[1728402205328,0.12502,142.55,142.44,7.32]
[1728402205525,0.12502,142.55,142.48,3.5104]
[1728402205730,0.12502,142.55,142.48,10.80967976]
[1728402207539,0.12502,142.55,142.54,3.509]
[1728402210441,29.66,142.6,142.52,7.32]
[1728402210737,29.66,142.6,142.56,3.5083]
[1728402211337,29.66,142.6,142.57,3.5081]
[1728402211539,29.66,142.58,142.53,1.3176]
[1728402211835,29.66,142.58,142.53,3.5091]
[1728402212431,29.66,142.55,142.51,3.5097]
[1728402212752,29.66,142.55,142.5,7.32]
[1728402213842,29.66,142.55,142.51,3.5096]
[1728402215353,29.66,142.55,142.5,7.32]
[1728402215549,29.66,142.55,142.52,3.5094]
[1728402215949,29.66,142.53,142.5,3.5097]
[1728402216152,29.66,142.53,142.49,0.12502]
[1728402216647,29.66,142.53,142.5,3.5098]
[1728402217249,29.66,142.56,142.49,0.12502]
[1728402217857,29.66,142.56,142.52,3.5093]
[1728402218053,29.66,142.56,142.49,0.12502]
[1728402218757,29.66,142.58,142.49,0.12502]
[1728402218968,29.66,142.58,142.57,3.5082]
[1728402219160,29.66,142.6,142.53,7.32]
[1728402219654,33.1675,142.6,142.55,3.5086]
[1728402220064,29.66,142.6,142.53,7.32]
[1728402220252,29.66,142.6,142.55,3.5087]
[1728402220453,29.66,142.6,142.53,7.32]
[1728402220763,33.1676,142.6,142.55,3.5086]
[1728402221062,33.1676,142.6,142.53,7.32]
[1728402221252,29.66,142.6,142.53,7.32]
[1728402222360,0.12502,142.61,142.53,7.32]
[1728402222564,0.12502,142.61,142.54,4.1362]
[1728402222757,0.12502,142.61,142.59,3.5075]
[1728402223159,0.12502,142.61,142.57,6.94]
[1728402223160,29.78502,142.61,142.57,6.94]
[1728402223854,29.78502,142.61,142.58,3.5078]
[1728402226459,29.78502,142.61,142.57,6.94]
[1728402226860,29.66,142.59,142.57,6.94]
[1728402227258,29.66,142.59,142.56,3.5083]
[1728402228462,29.66,142.59,142.54,1.3725]
[1728402228664,29.66,142.57,142.52,6.94]
[1728402229061,29.66,142.55,142.51,3.5096]
[1728402229765,29.66,142.55,142.5,1.3996]
[1728402229971,29.66,142.55,142.52,3.5094]
[1728402231173,8.2837,142.59,142.5,1.3996]
[1728402231174,29.66,142.57,142.5,1.3996]
[1728402231964,6.94,142.59,142.5,1.3996]
[1728402232172,29.66,142.6,142.5,1.3996]
[1728402232366,0.12502,142.61,142.59,3.5077]
[1728402233763,0.12502,142.61,142.56,6.94]
[1728402233965,0.12502,142.61,142.58,3.5078]
[1728402234170,0.12502,142.61,142.56,6.94]
[1728402234371,0.12502,142.61,142.6,3.5075]
[1728402240682,0.12502,142.61,142.56,8.3553]
[1728402240888,0.12502,142.61,142.59,3.5077]
[1728402241384,0.12502,142.61,142.56,1.4153]
[1728402241585,0.12502,142.61,142.6,3.5075]
[1728402242391,18.65502,142.61,142.6,3.5075]
[1728402242883,0.12502,142.61,142.6,3.5075]
[1728402243090,18.53,142.64,142.59,6.94]
[1728402243276,18.53,142.66,142.59,6.94]
[1728402244386,29.63,142.66,142.59,6.94]
[1728402244791,29.63,142.63,142.59,6.94]
[1728402244992,29.63,142.61,142.57,1.4045]
[1728402245187,29.63,142.61,142.58,3.5078]
[1728402245978,29.63,142.61,142.59,3.5077]
[1728402246292,29.63,142.61,142.57,1.4045]
[1728402246494,29.63,142.61,142.59,3.5076]
[1728402246693,29.63,142.61,142.57,1.4045]
[1728402246890,29.63,142.64,142.57,1.4045]
[1728402247088,29.63,142.66,142.63,3.5068]
[1728402248495,29.63,142.66,142.62,3.5069]
[1728402248690,29.63,142.64,142.57,1.4045]
[1728402248892,29.63,142.62,142.58,3.5078]
[1728402249783,33.137,142.62,142.58,3.5078]
[1728402250090,6.94,142.64,142.56,1.4153]
[1728402250091,29.63,142.6,142.56,1.4153]
[1728402250685,29.63,142.62,142.58,3.5079]
[1728402250885,29.63,142.62,142.56,1.4153]
[1728402251391,29.63,142.62,142.58,3.5079]
[1728402251590,33.1371,142.62,142.56,1.4153]
[1728402251900,29.63,142.6,142.56,4.9236]
[1728402252087,33.1376,142.6,142.56,3.5083]
[1728402252388,29.63,142.6,142.57,3.5082]
[1728402253396,29.65,142.6,142.57,3.5082]
[1728402253790,29.65,142.6,142.56,3.5084]
[1728402253991,29.65,142.6,142.55,0.12502]
[1728402254296,29.65,142.58,142.55,0.12502]
[1728402254494,29.65,142.56,142.51,8.1458]
[1728402254689,29.65,142.56,142.51,6.7]
[1728402254888,29.65,142.56,142.53,3.5092]
[1728402255088,29.65,142.56,142.51,6.7]
[1728402255290,29.65,142.58,142.51,6.7]
[1728402255900,29.65,142.58,142.54,3.5088]
[1728402256395,29.65,142.58,142.56,3.5085]
[1728402256897,6.7,142.6,142.51,6.7]
[1728402257096,6.7,142.6,142.57,3.508]
[1728402257291,29.77502,142.61,142.51,6.7]
[1728402257685,29.77502,142.61,142.57,3.5081]
[1728402258085,29.77502,142.61,142.55,6.7]
[1728402258300,0.12502,142.61,142.55,10.22985354]
[1728402258593,0.12502,142.61,142.56,1.3328]
[1728402259497,0.12502,142.61,142.6,3.5075]
[1728402265798,29.65,142.68,142.59,6.7]
[1728402266002,29.65,142.68,142.65,3.5061]
[1728402266299,29.65,142.68,142.59,6.7]
[1728402266502,18.51,142.65,142.59,6.7]
[1728402266701,18.51,142.65,142.63,3.5066]
[1728402266897,18.51,142.65,142.59,6.7]
[1728402267105,18.51,142.65,142.64,3.5065]
[1728402267510,18.51,142.65,142.59,6.7]
[1728402267706,18.51,142.65,142.64,3.5065]
[1728402268411,33.1255,142.68,142.64,3.5065]
[1728402268909,29.62,142.68,142.64,3.5065]
[1728402269405,33.1257,142.68,142.64,3.5065]
[1728402269609,29.62,142.68,142.59,6.7]
[1728402269900,31.0176,142.7,142.59,6.7]
[1728402270109,31.0176,142.7,142.66,3.506]
[1728402270412,29.62,142.7,142.66,3.506]
[1728402270713,33.125,142.7,142.66,3.506]
[1728402271305,33.1252,142.7,142.66,3.506]
[1728402272110,29.62,142.7,142.66,3.506]
[1728402274212,3.5053,142.69,142.65,3.5062]
[1728402274403,29.62,142.7,142.64,1.3348]
[1728402274711,29.62,142.68,142.64,1.3348]
[1728402274916,29.62,142.68,142.64,4.8412]
[1728402275509,3.63082,142.67,142.63,3.5067]
[1728402276110,3.63082,142.67,142.61,6.7]
[1728402276111,3.63082,142.67,142.62,3.5069]
[1728402276306,0.12502,142.67,142.61,6.7]
[1728402276814,3.5061,142.66,142.61,10.2071]
[1728402277016,29.62,142.65,142.59,1.3627]
[1728402277222,29.62,142.65,142.59,8.0627]
[1728402277520,33.1264,142.65,142.59,8.0627]
[1728402277824,33.1264,142.65,142.6,3.5074]
[1728402278119,3.5065,142.64,142.6,3.5074]
[1728402278510,33.1264,142.65,142.6,3.5074]
[1728402278713,29.62,142.65,142.6,3.5074]
[1728402278908,29.62,142.65,142.59,8.0627]
[1728402279130,3.5069,142.63,142.56,2.7251]
[1728402279320,29.62,142.6,142.56,4.921]
[1728402279630,29.62,142.63,142.56,1.4127]
[1728402279924,29.62,142.65,142.56,1.4127]
[1728402280119,29.62,142.65,142.62,3.5068]
[1728402282217,6.7,142.66,142.61,3.5072]
[1728402282524,0.12502,142.67,142.59,6.7]
[1728402283025,0.12502,142.67,142.64,3.5064]
[1728402283717,0.12502,142.67,142.59,6.7]
[1728402284118,0.12502,142.67,142.64,3.5063]
[1728402284513,0.12502,142.67,142.59,6.7]
[1728402285025,0.12502,142.67,142.61,3.5071]
[1728402285317,0.12502,142.67,142.59,6.7]
[1728402285524,0.12502,142.67,142.66,3.506]
[1728402287325,0.12502,142.67,142.65,3.5061]
[1728402287527,0.12502,142.67,142.64,1.4155]
[1728402287915,0.12502,142.67,142.64,4.9218]
[1728402289326,0.12502,142.67,142.65,3.5061]
[1728402289521,0.12502,142.67,142.64,1.4155]
[1728402289927,0.12502,142.67,142.65,3.5061]
[1728402290414,0.12502,142.79,142.64,1.4155]
[1728402290618,18.51,142.76,142.67,0.12502]
[1728402290818,18.51,142.76,142.68,6.68]
[1728402291130,18.51,142.76,142.72,3.5044]
[1728402291332,18.51,142.76,142.68,6.68]
[1728402291630,22.0141,142.74,142.69,10.1851]
[1728402291818,22.0141,142.74,142.69,6.68]
[1728402292126,22.0141,142.74,142.69,10.1852]
[1728402294127,22.0141,142.74,142.7,3.505]
[1728402294327,22.0141,142.74,142.69,6.68]
[1728402294533,22.0141,142.74,142.69,10.1851]
[1728402294733,22.0141,142.74,142.69,6.68]
[1728402294929,18.51,142.76,142.69,6.68]
[1728402295122,18.51,142.76,142.71,3.5048]
[1728402295318,0.12502,142.79,142.69,6.68]
[1728402295528,18.51,142.78,142.72,3.5044]
[1728402295728,18.51,142.78,142.7,1.3924]
[1728402296028,22.0132,142.78,142.7,1.3924]
[1728402296224,22.0132,142.78,142.74,3.504]
[1728402297030,22.0132,142.78,142.75,3.5038]
[1728402297229,18.51,142.78,142.7,1.3924]
[1728402297430,18.51,142.78,142.71,1.3195]
[1728402297627,18.51,142.78,142.75,3.5036]
[1728402297829,18.51,142.78,142.7,1.3924]
[1728402298426,3.5037,142.76,142.7,1.3924]
[1728402298627,22.0137,142.76,142.7,1.3924]
[1728402298926,18.51,142.76,142.72,3.5044]
[1728402299126,18.51,142.76,142.7,1.3924]
[1728402299524,18.51,142.76,142.7,8.0724]
[1728402299931,18.51,142.76,142.72,3.5044]
[1728402300132,18.51,142.76,142.7,8.0724]
[1728402300532,18.51,142.78,142.75,3.5038]
[1728402300733,18.51,142.78,142.7,8.0724]
[1728402300935,18.51,142.78,142.72,3.5044]
[1728402301135,18.51,142.78,142.7,8.0724]
[1728402301651,18.51,142.78,142.72,3.5044]
[1728402301935,18.51,142.78,142.7,8.0724]
[1728402302332,0.12502,142.79,142.7,26.5824]
[1728402303535,0.12502,142.79,142.78,3.5031]
[1728402304031,22.13652,142.85,142.8,3.5025]
[1728402304433,18.63502,142.85,142.8,3.5025]
[1728402304830,22.13642,142.85,142.8,3.5025]
[1728402305029,3.62642,142.85,142.77,3.45133977]
[1728402305230,22.13642,142.85,142.81,3.5023]
[1728402305430,22.13642,142.85,142.77,3.45133977]
[1728402305739,22.13642,142.85,142.78,6.68]
[1728402305930,22.13642,142.85,142.78,10.18262555]
[1728402306437,22.0119,142.83,142.78,10.18262555]
[1728402306836,18.51,142.83,142.8,3.5024]
[1728402307337,18.63502,142.85,142.78,10.17072138]
[1728402307538,18.63502,142.85,142.78,6.68]
[1728402308131,18.51,142.83,142.79,3.42525976]
[1728402308435,18.51,142.8,142.74,6.68]
[1728402308634,18.51,142.78,142.73,6.80502]
[1728402309126,18.51,142.8,142.73,6.80502]
[1728402309332,18.51,142.82,142.73,6.80502]
[1728402309542,3.4837696,142.95,142.84,3.5016]
[1728402309838,18.51,142.9,142.82,25.19]
[1728402310040,18.51,142.9,142.88,3.5004]
[1728402310341,18.51,142.9,142.83,1.3511]
[1728402310737,1.3664,142.94,142.86,18.51]
[1728402310943,18.51,142.95,142.87,6.68]
[1728402311149,18.51,142.96,142.9,3.5001]
[1728402312034,18.51,142.96,142.87,26.5448]
[1728402312235,0.12502,142.97,142.89,18.51]
[1728402312444,0.12502,142.97,142.9,1.3511]
[1728402312644,0.12502,142.97,142.96,3.4987]
[1728402312846,0.12502,142.97,142.91,10.15571102]
[1728402313036,0.12502,142.97,142.91,6.68]
[1728402313236,29.57,142.96,142.9,11.52256039]
[1728402313437,29.57,142.96,142.9,8.0311]
[1728402313744,0.12502,142.97,142.9,11.5299101]
[1728402316142,29.57,142.96,142.9,15.0299101]
[1728402316447,29.57,142.96,142.9,11.5299101]
[1728402317438,29.57,142.96,142.91,3.4997]
[1728402318449,29.57,142.96,142.9,15.0299101]
[1728402318649,29.57,142.96,142.9,11.5299101]
[1728402319045,29.57,142.96,142.91,3.4999]
[1728402319251,0.12502,142.97,142.9,11.5299101]
[1728402320542,0.12502,142.97,142.93,3.4992]
[1728402320743,0.12502,142.97,142.9,11.5299101]
[1728402321051,0.12502,142.97,142.95,3.4987]
[1728402321250,0.12502,142.97,142.91,29.57]
[1728402321646,0.12502,142.97,142.92,3.4994]
[1728402321843,0.12502,142.97,142.91,29.57]
[1728402322351,0.12502,142.97,142.96,3.4987]
[1728402322646,0.12502,142.97,142.9,4.8499101]
[1728402322852,29.69502,142.97,142.91,6.66]
[1728402323347,0.12502,142.97,142.94,3.4991]
[1728402323947,0.12502,142.97,142.91,6.66]
[1728402324343,0.12502,142.97,142.96,3.4987]
[1728402324538,0.12502,142.97,142.91,6.66]
[1728402324945,0.12502,142.97,142.96,3.4987]
[1728402325346,0.12502,142.97,142.91,6.66]
[1728402325552,0.12502,142.97,142.95,3.4988]
[1728402326253,0.12502,142.97,142.91,6.66]
[1728402326455,0.12502,142.97,142.96,3.4987]
[1728402326646,0.12502,142.97,142.91,6.66]
[1728402326841,0.12502,142.97,142.95,3.4988]
[1728402327052,0.12502,142.97,142.91,6.66]
[1728402327754,0.12502,142.97,142.9,4.8499101]
[1728402327948,0.12502,142.97,142.9,11.5099101]
[1728402328256,0.12502,142.97,142.9,41.0799101]
[1728402328647,0.12502,142.97,142.95,3.4987]
[1728402329048,0.12502,142.97,142.93,3.4993]
[1728402329353,0.12502,142.97,142.92,6.66]
[1728402329551,0.12502,142.97,142.9,4.8499101]
[1728402329747,0.12502,142.97,142.93,3.4992]
[1728402329944,0.12502,142.97,142.91,6.66]
[1728402330445,0.12502,142.97,142.94,3.499]
[1728402330652,0.12502,142.97,142.91,6.66]
[1728402330850,0.12502,142.97,142.95,3.4989]
[1728402331055,0.12502,142.97,142.91,6.66]
[1728402331554,0.12502,142.97,142.96,3.4987]
[1728402331757,0.12502,142.97,142.91,6.66]
[1728402331963,0.12502,142.97,142.94,3.499]
[1728402332264,0.12502,142.97,142.91,6.66]
[1728402332560,0.12502,142.97,142.94,3.499]
[1728402332859,0.12502,142.97,142.9,1.3511]
[1728402333058,29.69502,142.97,142.9,1.3511]
[1728402333251,0.12502,142.97,142.9,4.84039556]
[1728402333447,0.12502,142.97,142.94,3.499]
[1728402333749,0.12502,143.03,142.92,6.66]
[1728402333945,3.4973,143.02,142.97,3.4983]
[1728402334154,0.12502,143.03,142.93,1.3499]
[1728402334463,18.59502,143.03,142.96,6.66]
[1728402334760,3.4973,143.02,142.96,6.66]
[1728402335156,3.4973,143.02,142.99,3.4979]
[1728402335353,18.59502,143.03,142.96,6.66]
[1728402335549,22.09202,143.03,142.96,6.66]
[1728402335758,18.59502,143.03,142.99,3.4977]
[1728402336158,3.4974,143.01,142.96,6.66]
[1728402336355,18.59502,143.03,142.99,3.4978]
[1728402336755,18.47,143.01,142.93,10.11302063]
[1728402337161,3.4979,143.0,142.93,6.66]
[1728402337358,18.47,142.99,142.91,2.84812]
[1728402337659,18.47,142.97,142.92,6.66]
[1728402338055,18.47,142.97,142.94,3.499]
[1728402338256,3.4983,142.98,142.94,3.499]
[1728402338563,18.47,142.99,142.93,3.4992]
[1728402339065,3.4986,142.97,142.93,3.4992]
[1728402339267,18.47,142.99,142.93,3.4992]
[1728402339459,18.47,142.99,142.93,3.4993]
[1728402339659,3.4986,142.97,142.93,3.4993]
[1728402340155,3.4986,142.97,142.94,3.4991]